lending/lending_fUSD_20240603
["ID","MTS","AMOUNT","RATE_DAILY","PERIOD"]
[328479212,1717428645208,-699.86,0.0003315,4]
[328479213,1717428645218,-4060.59,0.0003315,4]
[328479214,1717428645228,-500.0,0.0003315,4]
[328479215,1717428645237,-500.0,0.0003315,4]
[328479216,1717428645246,-575.2,0.0003315,4]
[328479217,1717428645255,-535.17,0.0003315,4]
[328479218,1717428645264,-500.0,0.0003315,4]
[328479219,1717428645273,-500.0,0.0003315,4]
[328479220,1717428645282,-500.0,0.0003315,4]
[328479221,1717428645291,-500.0,0.0003315,4]
[328479222,1717428645300,-470.06,0.0003315,4]
[328479223,1717428645310,-500.0,0.0003315,4]
[328479224,1717428645319,-500.0,0.0003315,4]
[328479225,1717428645330,-1660.69,0.0003315,4]
[328479226,1717428645340,-1019.14,0.0003315,4]
[328479227,1717428645353,-2321.29,0.0003315,4]
[328479228,1717428645363,-500.0,0.0003315,4]
[328479229,1717428645372,-564.94,0.0003315,4]
[328479230,1717428645382,-743.06,0.0003315,4]
[328479231,1717428645391,-500.0,0.0003315,4]
[328479232,1717428645402,-747.22,0.0003315,4]
[328479233,1717428645412,-500.0,0.0003315,4]
[328479234,1717428645423,-325.0,0.00033151,8]
[328479235,1717428645433,-449.010381,0.00033151,14]
[328479236,1717428645443,-151.93380005,0.00033198,7]
[328479237,1717428645452,-157.0,0.00033199,5]
[328479238,1717428645461,-7180.883914,0.000332,2]
[328479239,1717428645471,-527.86983934,0.000332,2]
[328479240,1717428645481,-1718.97787095,0.000332,5]
[328479241,1717428645491,-1136.59348616,0.000332,15]
[328479242,1717428645501,-1368.13122643,0.000332,2]
[328479243,1717428645512,-1052.72,0.00033205,3]
[328479244,1717428645521,-1500.0,0.00033219,2]
[328479245,1717428645531,-500.0,0.00033235,3]
[328479246,1717428645542,-500.0,0.00033244,3]
[328479247,1717428645551,-500.0,0.00033253,3]
[328479248,1717428645563,-1022.6429965,0.00033267,3]
[328479249,1717428645573,-4184.68397942,0.00033268,4]
[328479250,1717428645594,-420.71278227,0.00033268,4]
[328479251,1717428645604,-8668.6800394,0.00033277,2]
[328479252,1717428645615,-8161.325344,0.00033277,2]
[328479253,1717428645623,-3255.24520393,0.00033277,2]
[328479254,1717428645635,-1320.40778745,0.00033277,2]
[328479255,1717428645646,-500.6964493,0.00033277,2]
[328479256,1717428645660,-384.39306398,0.00033277,2]
[328479276,1717428645915,-308.58838329,0.00031618,2]
[328479278,1717428645937,-2193.22814384,0.00033277,2]
[328479279,1717428645947,-7146.6159531,0.00033277,2]
[328479280,1717428645956,-6639.2612576,0.00033277,2]
[328479281,1717428645965,-849.2877726,0.00033277,2]
[328479282,1717428645974,-799.581227,0.00033277,2]
[328479283,1717428645984,-749.8746815,0.00033277,2]
[328479284,1717428645994,-700.1681359,0.00033277,2]
[328479285,1717428646004,-650.4615904,0.00033277,2]
[328479286,1717428646013,-355.3338842,0.00033277,2]
[328479287,1717428646024,-362.5697529,0.00033277,2]
[328479288,1717428646033,-369.8056216,0.00033277,2]
[328479289,1717428646042,-377.0414903,0.00033277,2]
[328479290,1717428646051,-384.277359,0.00033277,2]
[328479291,1717428646061,-800.0,0.00033288,7]
[328479292,1717428646070,-301.21,0.00033288,2]
[328479293,1717428646081,-150.0,0.00033288,2]
[328479294,1717428646093,-150.0,0.00033288,2]
[328479295,1717428646103,-150.0,0.00033288,2]
[328479296,1717428646115,-150.0,0.00033288,2]
[328479297,1717428646125,-150.0,0.00033288,2]
[328479298,1717428646135,-872.23,0.00033288,2]
[328479299,1717428646143,-872.23,0.00033288,2]
[328479300,1717428646154,-872.23,0.00033288,2]
[328479301,1717428646163,-858.9,0.00033288,2]
[328479302,1717428646172,-416.78,0.00033288,2]
[328479303,1717428646181,-416.78,0.00033288,2]
[328479304,1717428646190,-414.78,0.00033288,2]
[328479305,1717428646199,-155.37709862,0.00033298,4]
[328479306,1717428646208,-301.6746402,0.00033298,4]
[328479307,1717428646217,-157.80898856,0.00033298,4]
[328479308,1717428646226,-3013.2644568,0.00033298,4]
[328479309,1717428646235,-1532.52874464,0.00033298,4]
[328479310,1717428646245,-866.34776016,0.00033298,3]
[328479311,1717428646254,-807.68750229,0.00033298,4]
[328479312,1717428646264,-714.24731743,0.00033298,15]
[328479313,1717428646273,-1216.58199942,0.00033298,4]
[328479314,1717428646282,-2287.12440494,0.00033298,4]
[328479315,1717428646291,-225.49073151,0.00033298,4]
[328479316,1717428646300,-410.51505764,0.00033298,4]
[328479317,1717428646309,-2052.95118628,0.00033298,4]
[328479318,1717428646318,-5000.0,0.00033298,2]
[328479319,1717428646327,-1485.85566556,0.00033298,4]
[328479320,1717428646339,-172.62720833,0.00033298,2]
[328479321,1717428646348,-5698.34718129,0.00033298,2]
[328479322,1717428646357,-358.69410157,0.00033298,2]
[328479323,1717428646366,-3886.34928984,0.00033298,2]
[328479324,1717428646375,-529.98395834,0.00033298,4]
[328479327,1717428646387,-155.9017179,0.00033298,4]
[328479330,1717428646396,-310.0,0.00033298,4]
[328479331,1717428646406,-160.84175792,0.00033298,4]
[328479332,1717428646418,-163.49476447,0.00033298,4]
[328479333,1717428646427,-3136.51857874,0.00033298,4]
[328479334,1717428646437,-306.37473052,0.00033298,4]
[328479335,1717428646446,-3994.18314134,0.00033298,4]
[328479336,1717428646455,-1705.36080029,0.00033298,4]
[328479337,1717428646465,-2345.12481961,0.00033298,4]
[328479338,1717428646474,-505.36917605,0.00033298,4]
[328479339,1717428646483,-268.08947108,0.00033298,4]
[328479340,1717428646493,-811.7231,0.00033298,4]
[328479341,1717428646502,-156.32615111,0.00033298,4]
[328479342,1717428646511,-325.93727301,0.00033298,4]
[328479343,1717428646520,-310.0,0.00033298,4]
[328479344,1717428646529,-211.0452966,0.00033298,4]
[328479345,1717428646539,-155.0,0.00033298,4]
[328479346,1717428646548,-318.29985525,0.00033298,4]
[328479347,1717428646558,-731.87965211,0.00033298,4]
[328479348,1717428646567,-2815.94628034,0.00033298,4]
[328479349,1717428646576,-155.41106129,0.00033298,4]
[328479350,1717428646585,-761.11552404,0.00033298,4]
[328479351,1717428646594,-3622.07378211,0.00033298,4]
[328479352,1717428646603,-7657.20806601,0.00033298,2]
[328479353,1717428646808,-1518.82666889,0.00033298,2]
[328479354,1717428646819,-184.38916951,0.00033298,2]
[328479355,1717428646833,-492.53543469,0.00033298,2]
[328479356,1717428646844,-222.0697139,0.00033298,2]
[328479357,1717428646853,-348.0980155,0.00033298,2]
[328479358,1717428646863,-4061.96764705,0.00033299,2]
[328479359,1717428646872,-2444.043658,0.00033299,2]
[328479360,1717428646881,-150.01,0.00033299,2]
[328479361,1717428646891,-7062.52157586,0.00033299,4]
[328479362,1717428646903,-2748.58896844,0.00033299,4]
[328479363,1717428646912,-150.0,0.00033299,7]
[328479364,1717428646921,-150.0,0.00033299,7]
[328479365,1717428646930,-150.0,0.00033299,7]
[328479366,1717428646940,-150.0,0.00033299,7]
[328479367,1717428646949,-150.0,0.00033299,7]
[328479368,1717428646959,-150.0,0.00033299,7]
[328479369,1717428646968,-150.0,0.00033299,7]
[328479370,1717428646978,-150.0,0.00033299,7]
[328479371,1717428646987,-150.0,0.00033299,7]
[328479372,1717428646997,-155.2858098,0.00033299,7]
[328479373,1717428647006,-177.34533091,0.000333,5]
[328479374,1717428647015,-2380.22989085,0.000333,5]
[328479375,1717428647059,-150.0,0.00032599,2]
[328479376,1717428647068,-823.33044832,0.00032599,2]
[328479377,1717428647079,-1103.4,0.00032599,2]
[328479378,1717428647091,-473.26955168,0.00032599,2]
[328479379,1717428647100,-5156.20886332,0.000333,5]
[328479380,1717428647111,-32765.71530874,0.000333,5]
[328479381,1717428647129,-5313.45686711,0.000333,5]
[328479382,1717428647564,-482.25115687,0.000333,5]
[328479383,1717428647576,-3002.68394306,0.000333,5]
[328479384,1717428647588,-2909.31700183,0.000333,5]
[328479385,1717428647599,-169965.50906799,0.000333,5]
[328479386,1717428647612,-420.63780008,0.000333,5]
[328479387,1717428647622,-47474.38849395,0.000333,5]
[328479388,1717428647633,-1039.47,0.000333,5]
[328479389,1717428647645,-8544.7233514,0.000333,5]
[328479390,1717428647659,-1788.73434527,0.000333,5]
[328479391,1717428647819,-4130.75520245,0.000333,5]
[328479392,1717428647836,-1389.9739488,0.000333,5]
[328479393,1717428647852,-1419.55517767,0.000333,5]
[328479394,1717428647975,-872.23,0.00032329,2]
[328479395,1717428647985,-416.78,0.00032329,2]
[328479396,1717428647996,-308.58838329,0.00032409,2]
[328479397,1717428648008,-205.48746962,0.0003289,2]
[328479398,1717428648021,-151.0,0.0003297,7]
[328479399,1717428648033,-1070.04577274,0.000333,5]
[328479400,1717428648050,-1647.09143245,0.000333,5]
[328479401,1717428648062,-9254.77878349,0.000333,5]
[328479402,1717428648076,-8802.28571547,0.000333,5]
[328479403,1717428648089,-2166.1769928,0.000333,5]
[328479404,1717428648104,-1388.01775311,0.000333,5]
[328479405,1717428648118,-4435.3332493,0.000333,5]
[328479406,1717428648131,-1525.32,0.000333,5]
[328479407,1717428648145,-18295.20362781,0.000333,5]
[328479409,1717428782724,150.0,0.00019725,2]
[328479410,1717428782766,150.0,0.00019725,2]
[328479411,1717428824159,2233747.86546808,0.00014,2]
[328479412,1717428824190,3000.0,0.00014,2]
[328479413,1717428824218,4081.0,0.00014,2]
[328479414,1717428824252,1377.39,0.00014,2]
[328479415,1717428824282,30000.0,0.00014,2]
[328479416,1717428824313,1205596.86211884,0.00014,2]
[328479420,1717428997758,5002041.21982737,0.00014,2]
[328479422,1717429146483,-4000.0,0.00017259,2]
[328479426,1717429244046,713.53973876,0.00017259,2]
[328479429,1717429358320,545.13448433,0.00017259,2]
[328479430,1717429363277,942.804701,0.00031,32]
[328479431,1717429391148,345.31964735,0.00017259,2]
[328479432,1717429391351,155.0,0.00017259,2]
[328479433,1717429393135,155.0,0.00017259,2]
[328479434,1717429395532,338.22849758,0.00017259,2]
[328479435,1717429396558,327.62134304,0.00017259,2]
[328479436,1717429397227,1251.8193427,0.00017259,2]
[328479437,1717429399282,1275.80404584,0.00017259,2]
[328479438,1717429409185,268.37151533,0.00017259,2]
[328479439,1717429442506,4857.83602466,0.00031,30]
[328479440,1717429547874,-226.51830624,0.000201,2]
[328479441,1717429567030,-473.48169376,0.00022,2]
[328479473,1717429831748,-366.45790872,0.00019724,2]
[328479474,1717429831799,-347.08183004,0.00019724,2]
[328479475,1717429831812,-150.0,0.00019725,2]
[328479476,1717429831823,-545.13448433,0.00021999,2]
[328479477,1717429831833,-1989.51830624,0.00022,2]
[328479478,1717429831843,-173.40277015,0.0002345,2]
[328479479,1717429831853,-150.99,0.0002345,2]
[328479480,1717429831863,-543.01,0.0002355,2]
[328479481,1717429831873,-372.4247203,0.0002381,2]
[328479482,1717429831883,-999.99,0.0002381,2]
[328479483,1717429831892,-543.16,0.00024195,2]
[328479484,1717429831904,-158.75,0.00024384,2]
[328479485,1717429831915,-155.71,0.00024384,2]
[328479486,1717429831924,-224.99,0.00024384,5]
[328479487,1717429831934,-225.86,0.0002439,2]
[328479488,1717429831943,-167.02,0.00024788,2]
[328479489,1717429831952,-250.0,0.00024895,2]
[328479490,1717429831962,-167.01,0.00024969,2]
[328479491,1717429831971,-157.38,0.00025374,2]
[328479492,1717429831980,-543.16,0.00025404,2]
[328479493,1717429831989,-679.4788,0.0002549,2]
[328479494,1717429831998,-1049.0,0.000255,3]
[328479495,1717429832008,-529.0,0.000255,3]
[328479496,1717429832017,-271619.0,0.000255,2]
[328479497,1717429832026,-530.44,0.0002559,3]
[328479498,1717429832036,-173.40277015,0.00025604,2]
[328479499,1717429832045,-2199.52,0.00025696,2]
[328479500,1717429832055,-250.0,0.00025704,2]
[328479501,1717429832065,-886.81841433,0.00025714,2]
[328479502,1717429832074,-19726.63930914,0.00025774,2]
[328479503,1717429832086,-423.32484874,0.00025774,2]
[328479504,1717429832097,-3750.03584212,0.00025774,2]
[328479505,1717429832107,-543.01,0.00025814,2]
[328479506,1717429832116,-200.0,0.00025851,2]
[328479507,1717429832126,-500.0,0.00025902,2]
[328479508,1717429832135,-168.15,0.00025998,2]
[328479509,1717429832145,-11730.0,0.00026,3]
[328479510,1717429832154,-11730.0,0.000264,5]
[328479511,1717429832165,-543.16,0.00026614,2]
[328479512,1717429832174,-886.81841427,0.00026783,2]
[328479513,1717429832183,-500.0,0.00026998,2]
[328479514,1717429832192,-225.86,0.0002713,2]
[328479515,1717429832202,-192.66109184,0.0002718,2]
[328479516,1717429832211,-208.79,0.0002728,2]
[328479517,1717429832221,-150.0,0.00027397,2]
[328479518,1717429832231,-801.96,0.00027397,10]
[328479519,1717429832240,-860.96,0.00027397,10]
[328479520,1717429832249,-163.42,0.000274,2]
[328479521,1717429832260,-543.16,0.00027824,2]
[328479522,1717429832269,-886.81841427,0.00027853,2]
[328479523,1717429832278,-1000.0,0.00027867,2]
[328479524,1717429832287,-543.01,0.00028077,2]
[328479525,1717429832296,-500.0,0.00028094,2]
[328479526,1717429832306,-300.0,0.000282,2]
[328479527,1717429832315,-151.0,0.00028523,7]
[328479528,1717429832325,-165.698,0.00028545,2]
[328479529,1717429832335,-300.0,0.00028571,2]
[328479530,1717429832344,-167.02,0.00028919,2]
[328479531,1717429832354,-886.81841427,0.00028922,2]
[328479532,1717429832363,-300.0,0.00028942,2]
[328479533,1717429832372,-543.16,0.00029033,2]
[328479534,1717429832382,-500.0,0.0002919,2]
[328479535,1717429832392,-300.0,0.00029313,2]
[328479536,1717429832401,-204.28818122,0.00029335,2]
[328479537,1717429832412,-204.28818122,0.00029432,2]
[328479538,1717429832421,-188.93222002,0.00029657,2]
[328479539,1717429832430,-204.28818122,0.0002968,2]
[328479540,1717429832440,-300.0,0.00029684,2]
[328479541,1717429832449,-154.27917163,0.00029708,2]
[328479542,1717429832458,-151.0,0.00029717,7]
[328479543,1717429832670,-154.27917163,0.00029805,2]
[328479544,1717429832680,-225.86,0.00029869,2]
[328479545,1717429832690,-154.54266825,0.00029884,2]
[328479546,1717429832700,-204.28818122,0.00029921,2]
[328479547,1717429832710,-204.28818122,0.00029943,2]
[328479548,1717429832720,-154.27917163,0.00029984,2]
[328479549,1717429832730,-886.81841427,0.00029992,2]
[328479550,1717429832742,-7404.0199359,0.0003,2]
[328479551,1717429832752,-570.33060225,0.0003,4]
[328479552,1717429832761,-2652.26441315,0.0003,7]
[328479553,1717429832770,-14030.63616465,0.00030035,4]
[328479554,1717429832782,-204.28818122,0.00030035,7]
[328479555,1717429832791,-7500.0,0.00030036,2]
[328479556,1717429832801,-309.25517658,0.00030036,2]
[328479557,1717429832813,-408.76248765,0.00030055,2]
[328479558,1717429832822,-505.51968418,0.00030136,4]
[328479559,1717429832831,-500.0,0.00030136,4]
[328479560,1717429832841,-500.0,0.00030136,4]
[328479561,1717429832850,-500.0,0.00030136,4]
[328479562,1717429832860,-500.0,0.00030136,4]
[328479563,1717429832869,-500.0,0.00030136,4]
[328479564,1717429832879,-500.0,0.00030136,4]
[328479565,1717429832888,-500.0,0.00030136,4]
[328479566,1717429832898,-500.0,0.00030136,4]
[328479567,1717429832907,-500.0,0.00030136,4]
[328479568,1717429832919,-500.0,0.00030136,4]
[328479569,1717429832931,-500.0,0.00030136,4]
[328479570,1717429832940,-500.0,0.00030136,4]
[328479572,1717429832950,-500.0,0.00030136,4]
[328479574,1717429832961,-500.0,0.00030136,4]
[328479575,1717429832971,-500.0,0.00030136,4]
[328479576,1717429832980,-500.0,0.00030136,4]
[328479577,1717429832990,-500.0,0.00030136,4]
[328479578,1717429832999,-500.0,0.00030136,4]
[328479579,1717429833009,-500.0,0.00030136,4]
[328479580,1717429833018,-636.49,0.00030136,4]
[328479581,1717429833027,-500.0,0.00030136,4]
[328479582,1717429833036,-500.0,0.00030136,4]
[328479583,1717429833045,-639.02903629,0.00030136,4]
[328479584,1717429833055,-500.0,0.00030136,4]
[328479585,1717429833064,-500.0,0.00030136,4]
[328479586,1717429833074,-500.0,0.00030136,4]
[328479587,1717429833083,-500.0,0.00030136,4]
[328479588,1717429833092,-500.0,0.00030136,4]
[328479589,1717429833101,-500.0,0.00030136,4]
[328479590,1717429833111,-500.0,0.00030136,4]
[328479591,1717429833120,-500.0,0.00030136,4]
[328479592,1717429833129,-500.0,0.00030136,4]
[328479593,1717429833138,-500.0,0.00030136,4]
[328479594,1717429833148,-500.0,0.00030136,4]
[328479595,1717429833156,-500.0,0.00030136,4]
[328479596,1717429833169,-500.0,0.00030136,4]
[328479597,1717429833178,-500.0,0.00030136,4]
[328479598,1717429833187,-500.0,0.00030136,4]
[328479599,1717429833195,-500.0,0.00030136,4]
[328479600,1717429833204,-500.0,0.00030136,4]
[328479601,1717429833214,-500.0,0.00030136,4]
[328479602,1717429833224,-544.43,0.00030136,4]
[328479603,1717429833233,-500.0,0.00030136,4]
[328479604,1717429833243,-500.0,0.00030136,4]
[328479605,1717429833252,-500.0,0.00030136,4]
[328479606,1717429833260,-500.0,0.00030136,4]
[328479607,1717429833270,-500.0,0.00030136,4]
[328479608,1717429833279,-529.34228184,0.00030136,4]
[328479609,1717429833288,-338.88743,0.00030136,4]
[328479610,1717429833297,-500.0,0.00030136,4]
[328479611,1717429833306,-500.0,0.00030136,4]
[328479612,1717429833315,-500.0,0.00030136,4]
[328479613,1717429833325,-620.8822803,0.00030136,4]
[328479614,1717429833334,-500.0,0.00030136,4]
[328479615,1717429833343,-500.0,0.00030136,4]
[328479616,1717429833353,-500.0,0.00030136,4]
[328479617,1717429833362,-506.1565305,0.00030136,4]
[328479618,1717429833371,-500.0,0.00030136,4]
[328479619,1717429833380,-500.0,0.00030136,4]
[328479620,1717429833389,-511.09607297,0.00030136,4]
[328479621,1717429833397,-500.0,0.00030136,4]
[328479622,1717429833407,-500.0,0.00030136,4]
[328479623,1717429833419,-500.0,0.00030136,4]
[328479624,1717429833427,-500.0,0.00030136,4]
[328479625,1717429833436,-500.0,0.00030136,4]
[328479626,1717429833445,-500.0,0.00030136,4]
[328479627,1717429833455,-500.0,0.00030136,4]
[328479628,1717429833464,-500.0,0.00030136,4]
[328479629,1717429833473,-500.0,0.00030136,4]
[328479630,1717429833482,-500.0,0.00030136,4]
[328479631,1717429833491,-500.0,0.00030136,4]
[328479632,1717429833501,-500.0,0.00030136,4]
[328479633,1717429833510,-3375.12,0.00030136,4]
[328479634,1717429833519,-426.45,0.00030136,4]
[328479635,1717429833529,-500.0,0.00030136,4]
[328479636,1717429833538,-310.4,0.00030136,4]
[328479637,1717429833547,-500.0,0.00030136,4]
[328479638,1717429833556,-500.0,0.00030136,4]
[328479639,1717429833565,-983.46,0.00030136,4]
[328479640,1717429833574,-1350.41,0.00030136,4]
[328479641,1717429833584,-500.0,0.00030136,4]
[328479642,1717429833593,-500.0,0.00030136,4]
[328479643,1717429833602,-500.0,0.00030136,4]
[328479644,1717429833612,-500.0,0.00030136,4]
[328479645,1717429833621,-860.35,0.00030136,4]
[328479646,1717429833631,-217.8796055,0.00030136,4]
[328479647,1717429833641,-500.0,0.00030136,4]
[328479648,1717429833650,-511.94499528,0.00030136,4]
[328479649,1717429833659,-500.0,0.00030136,4]
[328479650,1717429833673,-500.0,0.00030136,4]
[328479651,1717429833682,-500.0,0.00030136,4]
[328479652,1717429833691,-500.0,0.00030136,4]
[328479653,1717429833700,-500.0,0.00030136,4]
[328479654,1717429833709,-500.0,0.00030136,4]
[328479655,1717429833717,-500.0,0.00030136,4]
[328479656,1717429833727,-2676.48,0.00030136,4]
[328479657,1717429833740,-586.06,0.00030136,4]
[328479658,1717429833749,-593.55,0.00030136,4]
[328479659,1717429833758,-2597.85,0.00030136,4]
[328479660,1717429833767,-591.98,0.00030136,4]
[328479661,1717429833778,-3165.87,0.00030136,4]
[328479662,1717429833788,-500.0,0.00030136,4]
[328479663,1717429833797,-500.0,0.00030136,4]
[328479664,1717429833807,-500.0,0.00030136,4]
[328479665,1717429833818,-500.0,0.00030136,4]
[328479666,1717429833827,-1110.13,0.00030136,4]
[328479667,1717429833836,-746.25,0.00030136,4]
[328479668,1717429833845,-849.57,0.00030136,4]
[328479669,1717429833854,-500.0,0.00030136,4]
[328479670,1717429833863,-500.0,0.00030136,4]
[328479671,1717429833872,-500.0,0.00030136,4]
[328479672,1717429833881,-500.0,0.00030136,4]
[328479673,1717429833890,-626.03,0.00030136,4]
[328479674,1717429833900,-500.0,0.00030136,4]
[328479675,1717429833909,-500.0,0.00030136,4]
[328479676,1717429833920,-500.0,0.00030136,4]
[328479677,1717429833929,-500.0,0.00030136,4]
[328479678,1717429833938,-500.0,0.00030136,4]
[328479679,1717429833947,-500.0,0.00030136,4]
[328479680,1717429833956,-500.0,0.00030136,4]
[328479681,1717429833965,-500.0,0.00030136,4]
[328479682,1717429833974,-500.0,0.00030136,4]
[328479683,1717429833983,-500.0,0.00030136,4]
[328479684,1717429833992,-598.68376614,0.00030136,4]
[328479685,1717429834001,-500.0,0.00030136,4]
[328479686,1717429834010,-500.0,0.00030136,4]
[328479687,1717429834019,-506.33792363,0.00030136,4]
[328479688,1717429834028,-500.0,0.00030136,4]
[328479689,1717429834037,-500.0,0.00030136,4]
[328479690,1717429834046,-500.0,0.00030136,4]
[328479691,1717429834056,-500.0,0.00030136,4]
[328479692,1717429834065,-2530.81,0.00030136,4]
[328479693,1717429834074,-500.0,0.00030136,4]
[328479694,1717429834083,-500.0,0.00030136,4]
[328479695,1717429834092,-500.0,0.00030136,4]
[328479696,1717429834101,-500.0,0.00030136,4]
[328479697,1717429834110,-500.0,0.00030136,4]
[328479698,1717429834119,-500.0,0.00030136,4]
[328479699,1717429834128,-500.0,0.00030136,4]
[328479700,1717429834137,-500.0,0.00030136,4]
[328479701,1717429834146,-500.0,0.00030136,4]
[328479702,1717429834156,-500.0,0.00030136,4]
[328479703,1717429834166,-1850.48,0.00030136,4]
[328479704,1717429834175,-500.0,0.00030136,4]
[328479705,1717429834184,-500.0,0.00030136,4]
[328479706,1717429834193,-500.0,0.00030136,4]
[328479707,1717429834203,-627.32,0.00030136,4]
[328479708,1717429834213,-500.0,0.00030136,4]
[328479709,1717429834222,-500.0,0.00030136,4]
[328479710,1717429834231,-500.0,0.00030136,4]
[328479711,1717429834240,-500.0,0.00030136,4]
[328479712,1717429834250,-500.0,0.00030136,4]
[328479713,1717429834260,-500.0,0.00030136,4]
[328479714,1717429834269,-500.0,0.00030136,4]
[328479715,1717429834278,-500.0,0.00030136,4]
[328479716,1717429834287,-500.0,0.00030136,4]
[328479717,1717429834296,-500.0,0.00030136,4]
[328479718,1717429834306,-599.0,0.00030136,4]
[328479719,1717429834316,-150.0,0.00030137,2]
[328479720,1717429834328,-314.307267,0.00030137,14]
[328479721,1717429834338,-165.698,0.00030197,2]
[328479722,1717429834347,-500.0,0.00030286,10]
[328479723,1717429834356,-156.01670739,0.00030289,7]
[328479724,1717429834366,-543.01,0.00030341,2]
[328479725,1717429834375,-204.28818122,0.00030346,7]
[328479726,1717429834384,-151.245013,0.00030399,2]
[328479727,1717429834393,-167.212512,0.00030399,2]
[328479728,1717429834402,-186.658462,0.00030399,2]
[328479729,1717429834412,-155.159554,0.00030399,2]
[328479730,1717429834421,-215.95315553,0.00030408,2]
[328479731,1717429834430,-434.18699759,0.00030408,2]
[328479732,1717429834441,-500.0,0.00030408,2]
[328479733,1717429834451,-500.0,0.00030408,2]
[328479734,1717429834461,-500.0,0.00030408,2]
[328479735,1717429834470,-500.0,0.00030408,2]
[328479736,1717429834480,-500.0,0.00030408,2]
[328479737,1717429834489,-500.0,0.00030408,2]
[328479738,1717429834498,-311.85585804,0.00030408,2]
[328479739,1717429834508,-500.0,0.00030408,2]
[328479740,1717429834518,-500.0,0.00030408,2]
[328479741,1717429834526,-500.0,0.00030408,2]
[328479742,1717429834535,-500.0,0.00030408,2]
[328479743,1717429834544,-231.2314728,0.00030408,2]
[328479744,1717429834554,-500.0,0.00030408,2]
[328479745,1717429834564,-500.0,0.00030408,2]
[328479746,1717429834573,-500.0,0.00030408,2]
[328479747,1717429834582,-500.0,0.00030408,2]
[328479748,1717429834591,-621.98688359,0.00030408,2]
[328479749,1717429834600,-500.0,0.00030409,4]
[328479750,1717429834609,-500.0,0.00030409,4]
[328479751,1717429834618,-500.0,0.00030409,4]
[328479752,1717429834627,-500.0,0.00030409,4]
[328479753,1717429834636,-500.0,0.00030409,4]
[328479754,1717429834645,-500.0,0.00030409,4]
[328479755,1717429834654,-500.0,0.00030409,4]
[328479756,1717429834665,-500.0,0.00030409,4]
[328479757,1717429834674,-500.0,0.00030409,4]
[328479758,1717429834683,-500.0,0.00030409,4]
[328479759,1717429834692,-500.0,0.00030409,4]
[328479760,1717429834700,-500.0,0.00030409,4]
[328479761,1717429834709,-500.0,0.00030409,4]
[328479762,1717429834718,-500.0,0.00030409,4]
[328479763,1717429834729,-500.0,0.00030409,4]
[328479764,1717429834741,-500.0,0.00030409,4]
[328479765,1717429834750,-500.0,0.00030409,4]
[328479766,1717429834759,-500.0,0.00030409,4]
[328479767,1717429834768,-500.0,0.00030409,4]
[328479768,1717429834779,-500.0,0.00030409,4]
[328479769,1717429834788,-500.0,0.00030409,4]
[328479770,1717429834797,-500.0,0.00030409,4]
[328479771,1717429834810,-500.0,0.00030409,4]
[328479772,1717429834821,-500.0,0.00030409,4]
[328479773,1717429834830,-500.0,0.00030409,4]
[328479774,1717429834839,-500.0,0.00030409,4]
[328479775,1717429834849,-500.0,0.00030409,4]
[328479776,1717429834858,-500.0,0.00030409,4]
[328479777,1717429834867,-500.0,0.00030409,4]
[328479778,1717429834876,-500.0,0.00030409,4]